fUSD/lending_fUSD_20251206
["ID","MTS","AMOUNT","RATE_DAILY","PERIOD"]
[396581995,1765059045250,-500.0,0.00016438,2]
[396581996,1765059045259,-500.0,0.00016438,2]
[396581997,1765059045269,-500.0,0.00016438,2]
[396581998,1765059045278,-528.99950933,0.00016438,2]
[396581999,1765059045287,-500.0,0.00016438,2]
[396582000,1765059045297,-1731.18,0.00016438,2]
[396582001,1765059045307,-518.73877924,0.00016438,2]
[396582002,1765059045316,-500.0,0.00016438,2]
[396582003,1765059045325,-500.0,0.00016438,2]
[396582004,1765059045335,-500.0,0.00016438,2]
[396582005,1765059045344,-500.0,0.00016438,2]
[396582006,1765059045353,-500.0,0.00016438,2]
[396582007,1765059045363,-500.0,0.00016438,2]
[396582008,1765059045372,-1823.94,0.00016438,2]
[396582009,1765059045381,-508.71,0.00016438,2]
[396582010,1765059045391,-500.0,0.00016438,2]
[396582011,1765059045400,-500.0,0.00016438,2]
[396582012,1765059045409,-500.0,0.00016438,2]
[396582013,1765059045419,-532.09821768,0.00016438,2]
[396582014,1765059045429,-500.0,0.00016438,2]
[396582015,1765059045438,-500.0,0.00016438,2]
[396582016,1765059045447,-568.52588495,0.00016438,2]
[396582017,1765059045457,-2324.97,0.00016438,2]
[396582018,1765059045467,-2281.44,0.00016438,2]
[396582019,1765059045475,-500.0,0.00016438,2]
[396582020,1765059045485,-500.0,0.00016438,2]
[396582021,1765059045494,-500.0,0.00016438,2]
[396582022,1765059045503,-500.0,0.00016438,2]
[396582023,1765059045511,-500.0,0.00016438,2]
[396582024,1765059045520,-2113.3,0.00016438,2]
[396582025,1765059045529,-2031.73,0.00016438,2]
[396582026,1765059045538,-1348.7,0.00016438,2]
[396582027,1765059045547,-1116.28,0.00016438,2]
[396582028,1765059045557,-500.0,0.00016438,2]
[396582029,1765059045566,-500.0,0.00016438,2]
[396582030,1765059045575,-500.0,0.00016438,2]
[396582031,1765059045584,-500.0,0.00016438,2]
[396582032,1765059045593,-539.32728333,0.00016438,2]
[396582033,1765059045602,-500.0,0.00016438,2]
[396582034,1765059045611,-500.0,0.00016438,2]
[396582035,1765059045620,-2159.77,0.00016438,2]
[396582036,1765059045629,-500.0,0.00016438,2]
[396582037,1765059045638,-500.0,0.00016438,2]
[396582038,1765059045647,-559.67,0.00016438,2]
[396582039,1765059045656,-500.0,0.00016438,2]
[396582040,1765059045665,-503.92500125,0.00016438,2]
[396582041,1765059045674,-2016.57,0.00016438,2]
[396582042,1765059045683,-2332.08,0.00016438,2]
[396582043,1765059045692,-500.0,0.00016438,2]
[396582044,1765059045701,-500.0,0.00016438,2]
[396582045,1765059045710,-1842.35,0.00016438,2]
[396582046,1765059045719,-500.0,0.00016438,2]
[396582047,1765059045728,-3865.59,0.00016438,2]
[396582048,1765059045737,-1550.52,0.00016438,2]
[396582049,1765059045746,-500.0,0.00016438,2]
[396582050,1765059045755,-500.0,0.00016438,2]
[396582051,1765059045764,-500.0,0.00016438,2]
[396582052,1765059045773,-652.67,0.00016438,2]
[396582053,1765059045783,-500.0,0.00016438,2]
[396582054,1765059045792,-500.0,0.00016438,2]
[396582055,1765059045801,-500.0,0.00016438,2]
[396582056,1765059045810,-503.94744766,0.00016438,2]
[396582057,1765059045818,-425.60504475,0.00016438,2]
[396582058,1765059045828,-500.0,0.00016438,2]
[396582059,1765059045837,-602.6582487,0.00016438,2]
[396582060,1765059045846,-500.0,0.00016438,2]
[396582061,1765059045855,-500.0,0.00016438,2]
[396582062,1765059045864,-2311.85,0.00016438,2]
[396582063,1765059045873,-2022.6,0.00016438,2]
[396582064,1765059045882,-4328.78,0.00016438,2]
[396582065,1765059045896,-867.67,0.00016438,2]
[396582066,1765059045904,-500.0,0.00016438,2]
[396582067,1765059045913,-500.0,0.00016438,2]
[396582068,1765059045922,-500.0,0.00016438,2]
[396582069,1765059045932,-886.75,0.00016438,2]
[396582070,1765059045941,-500.0,0.00016438,2]
[396582071,1765059045950,-1750.6,0.00016438,2]
[396582072,1765059045959,-1939.68,0.00016438,2]
[396582073,1765059045969,-500.0,0.00016438,2]
[396582074,1765059045978,-500.0,0.00016438,2]
[396582075,1765059045987,-500.0,0.00016438,2]
[396582076,1765059045996,-500.0,0.00016438,2]
[396582077,1765059046005,-2004.91,0.00016438,2]
[396582078,1765059046014,-2356.42,0.00016438,2]
[396582079,1765059046023,-836.19,0.00016438,2]
[396582080,1765059046032,-500.0,0.00016438,2]
[396582081,1765059046041,-1424.97,0.00016438,2]
[396582082,1765059046050,-500.0,0.00016438,2]
[396582083,1765059046059,-2491.09,0.00016438,2]
[396582084,1765059046069,-500.0,0.00016438,2]
[396582085,1765059046078,-500.0,0.00016438,2]
[396582086,1765059046088,-502.50500171,0.00016438,2]
[396582087,1765059046097,-500.0,0.00016438,2]
[396582088,1765059046106,-597.7374744,0.00016438,2]
[396582089,1765059046117,-505.75,0.00016438,2]
[396582090,1765059046126,-547.54,0.00016438,2]
[396582091,1765059046135,-500.0,0.00016438,2]
[396582092,1765059046144,-500.0,0.00016438,2]
[396582093,1765059046154,-2207.2,0.00016438,2]
[396582094,1765059046163,-2005.08,0.00016438,2]
[396582095,1765059046172,-2583.65,0.00016438,2]
[396582096,1765059046182,-2549.26,0.00016438,2]
[396582097,1765059046192,-1000.0,0.00016438,2]
[396582098,1765059046202,-500.0,0.00016438,2]
[396582099,1765059046211,-500.0,0.00016438,2]
[396582100,1765059046221,-2271.75,0.00016438,2]
[396582101,1765059046231,-502.81938012,0.00016438,2]
[396582102,1765059046241,-500.0,0.00016438,2]
[396582103,1765059046250,-500.0,0.00016438,2]
[396582104,1765059046260,-500.0,0.00016438,2]
[396582105,1765059046269,-500.0,0.00016438,2]
[396582106,1765059046279,-525.3,0.00016438,2]
[396582107,1765059046288,-2438.86,0.00016438,2]
[396582108,1765059046297,-500.0,0.00016438,2]
[396582109,1765059046306,-500.0,0.00016438,2]
[396582110,1765059046315,-1086.04,0.00016438,2]
[396582111,1765059046325,-500.0,0.00016438,2]
[396582112,1765059046335,-500.0,0.00016438,2]
[396582113,1765059046344,-500.0,0.00016438,2]
[396582114,1765059046354,-500.0,0.00016438,2]
[396582115,1765059046363,-500.0,0.00016438,2]
[396582116,1765059046376,-500.0,0.00016438,2]
[396582117,1765059046386,-2194.79,0.00016438,2]
[396582118,1765059046395,-500.0,0.00016438,2]
[396582119,1765059046404,-696.7,0.00016438,2]
[396582120,1765059046414,-500.0,0.00016438,2]
[396582121,1765059046423,-500.0,0.00016438,2]
[396582123,1765059046433,-500.0,0.00016438,2]
[396582124,1765059046442,-500.0,0.00016438,2]
[396582125,1765059046452,-500.0,0.00016438,2]
[396582126,1765059046461,-500.0,0.00016438,2]
[396582128,1765059046471,-500.0,0.00016438,2]
[396582130,1765059046480,-500.0,0.00016438,2]
[396582131,1765059046489,-500.0,0.00016438,2]
[396582132,1765059046499,-629.1,0.00016438,2]
[396582133,1765059046508,-500.0,0.00016438,2]
[396582134,1765059046516,-500.0,0.00016438,2]
[396582136,1765059046526,-2101.41,0.00016438,2]
[396582137,1765059046536,-500.0,0.00016438,2]
[396582138,1765059046545,-500.0,0.00016438,2]
[396582139,1765059046555,-792.43,0.00016438,2]
[396582140,1765059046564,-1015.36,0.00016438,2]
[396582141,1765059046574,-2494.04,0.00016438,2]
[396582143,1765059046583,-500.0,0.00016438,2]
[396582145,1765059046593,-500.0,0.00016438,2]
[396582147,1765059046602,-500.0,0.00016438,2]
[396582148,1765059046612,-500.0,0.00016438,2]
[396582149,1765059046622,-500.0,0.00016438,2]
[396582150,1765059046631,-500.0,0.00016438,2]
[396582151,1765059046640,-500.0,0.00016438,2]
[396582152,1765059046650,-500.0,0.00016438,2]
[396582153,1765059046660,-2270.55,0.00016438,2]
[396582154,1765059046670,-500.0,0.00016438,2]
[396582155,1765059046679,-500.0,0.00016438,2]
[396582156,1765059046688,-500.0,0.00016438,2]
[396582157,1765059046698,-541.16,0.00016438,2]
[396582158,1765059046707,-503.57232445,0.00016438,2]
[396582159,1765059046717,-500.0,0.00016438,2]
[396582160,1765059046726,-500.0,0.00016438,2]
[396582161,1765059046736,-500.0,0.00016438,2]
[396582162,1765059046745,-1783.82,0.00016438,2]
[396582163,1765059046755,-6434.56,0.00016438,2]
[396582164,1765059046764,-500.0,0.00016438,2]
[396582165,1765059046773,-2029.55,0.00016438,2]
[396582166,1765059046782,-1534.88,0.00016438,2]
[396582167,1765059046792,-500.0,0.00016438,2]
[396582168,1765059046802,-538.71749559,0.00016438,2]
[396582169,1765059046812,-500.0,0.00016438,2]
[396582170,1765059046821,-500.0,0.00016438,2]
[396582171,1765059046830,-500.0,0.00016438,2]
[396582172,1765059046840,-500.0,0.00016438,2]
[396582173,1765059046850,-503.89,0.00016438,2]
[396582174,1765059046859,-282.35799692,0.00016438,2]
[396582175,1765059046870,-500.0,0.00016438,2]
[396582176,1765059046879,-500.0,0.00016438,2]
[396582177,1765059046891,-619.15,0.00016438,2]
[396582178,1765059046901,-500.0,0.00016438,2]
[396582179,1765059046911,-2421.96,0.00016438,2]
[396582180,1765059046921,-500.0,0.00016438,2]
[396582181,1765059046931,-500.0,0.00016438,2]
[396582182,1765059046940,-500.0,0.00016438,2]
[396582183,1765059046949,-500.0,0.00016438,2]
[396582184,1765059046960,-546.71,0.00016438,2]
[396582185,1765059046972,-531.62,0.00016438,2]
[396582186,1765059047062,-500.0,0.00016438,2]
[396582187,1765059047071,-502.8284715,0.00016438,2]
[396582188,1765059047080,-2034.96,0.00016438,2]
[396582189,1765059047090,-500.0,0.00016438,2]
[396582190,1765059047099,-500.0,0.00016438,2]
[396582191,1765059047108,-500.0,0.00016438,2]
[396582192,1765059047117,-500.0,0.00016438,2]
[396582193,1765059047127,-500.0,0.00016438,2]
[396582194,1765059047136,-500.0,0.00016438,2]
[396582195,1765059047145,-500.0,0.00016438,2]
[396582196,1765059047155,-2507.76,0.00016438,2]
[396582197,1765059047164,-1091.36,0.00016438,2]
[396582198,1765059047173,-500.0,0.00016438,2]
[396582199,1765059047183,-500.0,0.00016438,2]
[396582200,1765059047192,-1413.23,0.00016438,2]
[396582201,1765059047202,-2411.27,0.00016438,2]
[396582202,1765059047211,-2403.65,0.00016438,2]
[396582203,1765059047220,-500.0,0.00016438,2]
[396582204,1765059047229,-2384.39,0.00016438,2]
[396582205,1765059047238,-500.0,0.00016438,2]
[396582206,1765059047247,-500.0,0.00016438,2]
[396582207,1765059047256,-779.92,0.00016438,2]
[396582208,1765059047265,-500.0,0.00016438,2]
[396582209,1765059047274,-2504.25,0.00016438,2]
[396582210,1765059047283,-500.0,0.00016438,2]
[396582211,1765059047292,-500.0,0.00016438,2]
[396582212,1765059047301,-500.0,0.00016438,2]
[396582213,1765059047310,-8627.7,0.00016438,2]
[396582214,1765059047320,-501.94136737,0.00016438,2]
[396582215,1765059047328,-569.71,0.00016438,2]
[396582216,1765059047337,-500.0,0.00016438,2]
[396582217,1765059047346,-8333.97,0.00016438,2]
[396582218,1765059047355,-500.0,0.00016438,2]
[396582219,1765059047364,-2346.54,0.00016438,2]
[396582220,1765059047373,-2142.86,0.00016438,2]
[396582221,1765059047383,-500.0,0.00016438,2]
[396582222,1765059047392,-500.0,0.00016438,2]
[396582223,1765059047401,-1144.76,0.00016438,2]
[396582224,1765059047410,-500.0,0.00016438,2]
[396582225,1765059047419,-504.9334364,0.00016438,2]
[396582226,1765059047428,-500.0,0.00016438,2]
[396582227,1765059047437,-2441.78,0.00016438,2]
[396582228,1765059047446,-500.0,0.00016438,2]
[396582229,1765059047455,-2657.52,0.00016438,2]
[396582230,1765059047464,-500.0,0.00016438,2]
[396582231,1765059047473,-500.0,0.00016438,2]
[396582232,1765059047482,-500.0,0.00016438,2]
[396582233,1765059047491,-500.0,0.00016438,2]
[396582234,1765059047501,-596.27,0.00016438,2]
[396582235,1765059047510,-500.0,0.00016438,2]
[396582236,1765059047519,-500.0,0.00016438,2]
[396582237,1765059047528,-2323.48,0.00016438,2]
[396582238,1765059047537,-2360.09,0.00016438,2]
[396582239,1765059047547,-154.39431703,0.00016438,2]
[396582240,1765059047556,-956.98,0.00016438,2]
[396582241,1765059047565,-1262.36,0.00016438,2]
[396582242,1765059047574,-961.71,0.00016438,2]
[396582243,1765059047583,-500.0,0.00016438,2]
[396582244,1765059047593,-1716.5,0.00016438,2]
[396582245,1765059047603,-500.0,0.00016438,2]
[396582246,1765059047612,-502.90216918,0.00016438,2]
[396582247,1765059047622,-500.0,0.00016438,2]
[396582248,1765059047632,-500.0,0.00016438,2]
[396582249,1765059047641,-500.0,0.00016438,2]
[396582250,1765059047652,-587.81,0.00016438,2]
[396582251,1765059047662,-500.0,0.00016438,2]
[396582252,1765059047671,-440.56757114,0.00016438,2]
[396582253,1765059047680,-500.0,0.00016438,2]
[396582254,1765059047690,-556.2,0.00016438,2]
[396582255,1765059047699,-2299.04,0.00016438,2]
[396582256,1765059047709,-500.0,0.00016438,2]
[396582257,1765059047718,-500.0,0.00016438,2]
[396582258,1765059047728,-1900.61,0.00016438,2]
[396582259,1765059047737,-2148.75,0.00016438,2]
[396582260,1765059047747,-500.0,0.00016438,2]
[396582261,1765059047756,-500.0,0.00016438,2]
[396582262,1765059047765,-502.55054745,0.00016438,2]
[396582263,1765059047775,-2326.93,0.00016438,2]
[396582264,1765059047784,-500.0,0.00016438,2]
[396582265,1765059047794,-500.0,0.00016438,2]
[396582266,1765059047803,-500.0,0.00016438,2]
[396582267,1765059047812,-748.03,0.00016438,2]
[396582268,1765059047824,-500.0,0.00016438,2]
[396582269,1765059047834,-670.83,0.00016438,2]
[396582270,1765059047844,-3284.68,0.00016438,2]
[396582271,1765059047853,-2576.83,0.00016438,2]
[396582272,1765059047863,-500.0,0.00016438,2]
[396582273,1765059047872,-503.05142644,0.00016438,2]
[396582274,1765059047882,-677.44,0.00016438,2]
[396582275,1765059047894,-677.44,0.00016438,2]
[396582276,1765059047904,-677.44,0.00016438,2]
[396582277,1765059047914,-677.44,0.00016438,2]
[396582278,1765059047924,-500.0,0.00016438,2]
[396582279,1765059047936,-677.44,0.00016438,2]
[396582280,1765059047945,-677.44,0.00016438,2]
[396582281,1765059047954,-500.0,0.00016438,2]
[396582282,1765059047966,-500.0,0.00016438,2]
[396582283,1765059047979,-500.0,0.00016438,2]
[396582284,1765059047988,-500.0,0.00016438,2]
[396582285,1765059047998,-712.17,0.00016438,2]
[396582286,1765059048007,-652.44,0.00016438,2]
[396582287,1765059048016,-500.0,0.00016438,2]
[396582288,1765059048026,-500.0,0.00016438,2]
[396582289,1765059048035,-500.0,0.00016438,2]
[396582290,1765059048043,-500.0,0.00016438,2]
[396582291,1765059048053,-500.0,0.00016438,2]
[396582292,1765059048063,-501.52980992,0.00016438,2]
[396582293,1765059048072,-511.57149458,0.00016438,2]
[396582294,1765059048081,-502.45785831,0.00016438,2]
[396582295,1765059048090,-500.0,0.00016438,2]
[396582296,1765059048099,-500.0,0.00016438,2]
[396582297,1765059048108,-500.0,0.00016438,2]
[396582298,1765059048117,-809.86,0.00016438,2]
[396582299,1765059048127,-500.0,0.00016438,2]
[396582300,1765059048136,-614.0,0.00016438,2]
[396582301,1765059048145,-500.0,0.00016438,2]
[396582302,1765059048154,-500.0,0.00016438,2]
[396582303,1765059048163,-1752.64,0.00016438,2]
[396582304,1765059048172,-500.0,0.00016438,2]
[396582305,1765059048181,-500.0,0.00016438,2]
[396582306,1765059048191,-581.29,0.00016438,2]
[396582307,1765059048200,-2175.58,0.00016438,2]
[396582308,1765059048210,-500.0,0.00016438,2]
[396582309,1765059048220,-500.0,0.00016438,2]
[396582310,1765059048229,-2326.09,0.00016438,2]
[396582311,1765059048239,-3274.5,0.00016438,2]
[396582312,1765059048247,-553.71,0.00016438,2]
[396582313,1765059048257,-500.0,0.00016438,2]
[396582314,1765059048266,-541.19368772,0.00016438,2]
[396582315,1765059048275,-500.0,0.00016438,2]
[396582316,1765059048284,-500.0,0.00016438,2]
[396582317,1765059048294,-501.86015835,0.00016438,2]
[396582318,1765059048303,-500.0,0.00016438,2]
[396582319,1765059048312,-1736.63,0.00016438,2]
[396582320,1765059048321,-500.63692728,0.00016438,2]
[396582321,1765059048330,-1542.29,0.00016438,2]
[396582322,1765059048339,-671.92,0.00016438,2]
[396582323,1765059048348,-500.0,0.00016438,2]
[396582324,1765059048357,-500.0,0.00016438,2]
[396582325,1765059048366,-500.0,0.00016438,2]
[396582326,1765059048374,-1970.14,0.00016438,2]
[396582327,1765059048383,-500.0,0.00016438,2]
[396582328,1765059048393,-500.0,0.00016438,2]
[396582329,1765059048402,-500.61317202,0.00016438,2]
[396582330,1765059048412,-1032.1,0.00016438,2]
[396582331,1765059048421,-500.0,0.00016438,2]
[396582332,1765059048430,-500.0,0.00016438,2]
[396582333,1765059048439,-1216.74,0.00016438,2]
[396582334,1765059048448,-500.0,0.00016438,2]
[396582335,1765059048457,-500.0,0.00016438,2]
[396582336,1765059048467,-503.02961058,0.00016438,2]
[396582337,1765059048476,-500.0,0.00016438,2]
[396582338,1765059048486,-500.0,0.00016438,2]
[396582339,1765059048497,-2254.65,0.00016438,2]
[396582340,1765059048507,-816.82,0.00016438,2]
[396582341,1765059048517,-2183.81,0.00016438,2]
[396582342,1765059048527,-500.0,0.00016438,2]
[396582343,1765059048536,-500.0,0.00016438,2]
[396582344,1765059048545,-534.27720199,0.00016438,2]
[396582345,1765059048554,-500.0,0.00016438,2]
[396582346,1765059048564,-500.0,0.00016438,2]
[396582347,1765059048573,-500.0,0.00016438,2]
[396582348,1765059048582,-500.0,0.00016438,2]
[396582349,1765059048592,-1243.0,0.00016438,2]
[396582350,1765059048603,-580.59,0.00016438,2]
[396582351,1765059048612,-500.0,0.00016438,2]
[396582352,1765059048621,-826.82,0.00016438,2]
[396582353,1765059048630,-500.0,0.00016438,2]
[396582354,1765059048639,-500.0,0.00016438,2]
[396582355,1765059048648,-500.0,0.00016438,2]
[396582356,1765059048657,-500.0,0.00016438,2]
[396582357,1765059048666,-501.02980612,0.00016438,2]
[396582358,1765059048675,-500.0,0.00016438,2]
[396582359,1765059048686,-500.0,0.00016438,2]
[396582360,1765059048696,-505.68721948,0.00016438,2]
[396582361,1765059048705,-500.0,0.00016438,2]
[396582362,1765059048714,-1367.8,0.00016438,2]
[396582363,1765059048723,-500.0,0.00016438,2]
[396582364,1765059048733,-500.0,0.00016438,2]
[396582365,1765059048743,-2567.43,0.00016438,2]
[396582366,1765059048752,-13174.03,0.00016438,2]
[396582367,1765059048760,-518.5,0.00016438,2]
[396582368,1765059048769,-871.26885677,0.00016477,2]
[396582369,1765059048778,-480.22,0.000165,2]
[396582370,1765059048787,-480.22,0.000165,2]
[396582371,1765059048796,-480.22,0.000165,2]
[396582372,1765059048805,-480.22,0.000165,2]
[396582373,1765059048814,-871.26885677,0.00016561,2]
[396582374,1765059048823,-179.0,0.00016564,2]
[396582375,1765059048832,-1000.0,0.00016586,3]
[396582376,1765059048841,-179.0,0.00016595,2]
[396582377,1765059048849,-168.37,0.00016596,2]
[396582378,1765059048858,-375.27827149,0.00016598,2]
[396582379,1765059048867,-285.16,0.000166,2]
[396582380,1765059048876,-155.75078494,0.00016612,2]
[396582381,1765059048885,-500.0,0.00016619,2]
[396582382,1765059048898,-236.57739406,0.00016631,2]
[396582383,1765059048908,-179.0,0.00016642,2]
[396582384,1765059048917,-871.26885677,0.00016646,2]
[396582385,1765059048926,-188.12,0.00016661,2]
[396582386,1765059048936,-1000.0,0.000167,2]
[396582387,1765059048946,-399.41219931,0.00016711,2]
[396582388,1765059048955,-677.44,0.00016711,2]
[396582389,1765059048964,-677.44,0.00016711,2]
[396582390,1765059048974,-677.44,0.00016711,2]
[396582391,1765059048984,-500.0,0.00016712,2]
[396582392,1765059048993,-500.0,0.00016712,2]
[396582393,1765059049003,-500.0,0.00016712,2]
[396582394,1765059049012,-1224.7,0.00016712,2]
[396582395,1765059049022,-500.0,0.00016712,2]
[396582396,1765059049031,-500.0,0.00016712,2]
[396582397,1765059049040,-500.0,0.00016712,2]
[396582398,1765059049050,-500.0,0.00016712,2]
[396582399,1765059049061,-500.0,0.00016712,2]
[396582400,1765059049071,-500.0,0.00016712,2]
[396582401,1765059049081,-2021.91,0.00016712,2]
[396582402,1765059049091,-500.0,0.00016712,2]
[396582403,1765059049100,-500.0,0.00016712,2]
[396582404,1765059049110,-500.0,0.00016712,2]
[396582405,1765059049119,-500.0,0.00016712,2]
[396582406,1765059049128,-209.80465977,0.00016712,2]
[396582407,1765059049138,-500.0,0.00016712,2]
[396582408,1765059049146,-500.0,0.00016712,2]
[396582409,1765059049155,-2115.28,0.00016712,2]
[396582410,1765059049164,-500.0,0.00016712,2]
[396582411,1765059049173,-500.0,0.00016712,2]
[396582412,1765059049183,-500.0,0.00016712,2]
[396582413,1765059049192,-500.0,0.00016712,2]
[396582414,1765059049201,-500.0,0.00016712,2]
[396582415,1765059049209,-847.81,0.00016712,2]
[396582416,1765059049219,-500.0,0.00016712,2]
[396582417,1765059049230,-268.4710365,0.00016712,2]
[396582418,1765059049243,-500.0,0.00016712,2]
[396582419,1765059049252,-500.0,0.00016712,2]
[396582420,1765059049261,-500.0,0.00016712,2]
[396582421,1765059049270,-500.0,0.00016712,2]
[396582422,1765059049279,-500.0,0.00016712,2]
[396582423,1765059049288,-448.43821344,0.00016712,2]
[396582424,1765059049298,-500.0,0.00016712,2]
[396582425,1765059049307,-500.0,0.00016712,2]
[396582426,1765059049316,-300.0,0.00016712,2]
[396582427,1765059049325,-500.0,0.00016712,2]
[396582428,1765059049334,-662.2,0.00016712,2]
[396582429,1765059049343,-500.0,0.00016712,2]
[396582430,1765059049353,-500.0,0.00016712,2]
[396582431,1765059049361,-500.0,0.00016712,2]
[396582432,1765059049370,-500.0,0.00016712,2]
[396582433,1765059049379,-537.35,0.00016712,2]
[396582434,1765059049388,-500.0,0.00016712,2]
[396582435,1765059049397,-500.0,0.00016712,2]
[396582436,1765059049406,-1929.78,0.00016712,2]
[396582437,1765059049415,-600.16,0.00016712,2]
[396582438,1765059049423,-518.03650229,0.00016712,2]
[396582439,1765059049432,-500.0,0.00016712,2]
[396582440,1765059049441,-500.0,0.00016712,2]
[396582441,1765059049450,-500.0,0.00016712,2]
[396582442,1765059049459,-500.0,0.00016712,2]
[396582443,1765059049468,-500.0,0.00016712,2]
[396582444,1765059049477,-503.8290201,0.00016712,2]
[396582445,1765059049485,-500.0,0.00016712,2]
[396582446,1765059049495,-500.0,0.00016712,2]
[396582447,1765059049503,-500.0,0.00016712,2]
[396582448,1765059049512,-500.0,0.00016712,2]
[396582449,1765059049522,-500.0,0.00016712,2]
[396582450,1765059049532,-500.0,0.00016712,2]
[396582451,1765059049541,-500.0,0.00016712,2]
[396582452,1765059049550,-500.0,0.00016712,2]
[396582453,1765059049559,-500.0,0.00016712,2]
[396582454,1765059049567,-500.0,0.00016712,2]
[396582455,1765059049577,-528.09,0.00016712,2]
[396582456,1765059049586,-603.52030482,0.00016712,2]
[396582457,1765059049595,-500.0,0.00016712,2]
[396582458,1765059049604,-500.0,0.00016712,2]
[396582459,1765059049613,-500.0,0.00016712,2]
[396582460,1765059049622,-500.0,0.00016712,2]
[396582461,1765059049631,-500.0,0.00016712,2]
[396582462,1765059049640,-500.0,0.00016712,2]
[396582463,1765059049649,-560.49,0.00016712,2]
[396582464,1765059049659,-500.0,0.00016712,2]
[396582465,1765059049667,-414.07776848,0.00016712,2]
[396582466,1765059049676,-500.0,0.00016712,2]
[396582467,1765059049686,-1720.72,0.00016712,2]
[396582468,1765059049695,-500.0,0.00016712,2]
[396582469,1765059049709,-500.0,0.00016712,2]
[396582470,1765059049720,-500.0,0.00016712,2]
[396582471,1765059049730,-581.06391536,0.00016712,2]
[396582472,1765059049740,-1980.99,0.00016712,2]
[396582473,1765059049749,-500.0,0.00016712,2]
[396582474,1765059049758,-500.0,0.00016712,2]
[396582475,1765059049767,-500.0,0.00016712,2]
[396582476,1765059049776,-500.0,0.00016712,2]
[396582477,1765059049785,-500.0,0.00016712,2]
[396582478,1765059049794,-2053.38,0.00016712,2]
[396582479,1765059049804,-500.0,0.00016712,2]
[396582480,1765059049815,-500.0,0.00016712,2]
[396582481,1765059049825,-500.0,0.00016712,2]
[396582482,1765059049835,-500.0,0.00016712,2]
[396582483,1765059049844,-500.0,0.00016712,2]
[396582484,1765059049854,-500.0,0.00016712,2]
[396582485,1765059049864,-500.0,0.00016712,2]
[396582486,1765059049874,-500.0,0.00016712,2]
[396582487,1765059049885,-2100.8,0.00016712,2]
[396582488,1765059049898,-500.0,0.00016712,2]
[396582489,1765059049908,-2249.77,0.00016712,2]
[396582490,1765059049917,-500.0,0.00016712,2]
[396582491,1765059049927,-500.0,0.00016712,2]
[396582492,1765059049939,-500.0,0.00016712,2]
[396582493,1765059049948,-500.0,0.00016712,2]
[396582494,1765059049957,-500.0,0.00016712,2]
[396582495,1765059049967,-500.0,0.00016712,2]
[396582496,1765059049977,-500.0,0.00016712,2]
[396582497,1765059049986,-500.0,0.00016712,2]
[396582498,1765059049995,-500.0,0.00016712,2]
[396582499,1765059050004,-500.0,0.00016712,2]
[396582500,1765059050013,-500.0,0.00016712,2]
[396582501,1765059050022,-500.0,0.00016712,2]